[Event "January 9 Late 2024"]
[Site "https://www.chess.com"]
[Date "2024.01.09"]
[Round "3"]
[White "Yuan, Qingyu"]
[Black "Dominguez Perez, Leinier"]
[Result "0-1"]
[Board "28"]
[TimeControl "180+1"]
[WhiteFideId "8609772"]
[BlackFideId "3503240"]
[WhiteElo "2748"]
[BlackElo "2984"]
[WhiteTeam "CHN"]
[BlackTeam "USA"]
[WhiteClock "0:00:05"]
[BlackClock "0:00:13"]

1. e4 {[%clk 0:03:00]}  c5 {[%clk 0:02:59]} 2. Nf3 {[%clk 0:03:01]}  d6 {[%clk 0:03:00]} 3. Bb5+ {[%clk 0:03:01]}  Nd7 {[%clk 0:03:00]} 4. c3 {[%clk 0:03:01]}  Nf6 {[%clk 0:02:58]} 5. Qe2 {[%clk 0:03:02]}  a6 {[%clk 0:02:58]} 6. Ba4 {[%clk 0:03:03]}  b5 {[%clk 0:02:56]} 7. Bc2 {[%clk 0:03:03]}  Bb7 {[%clk 0:02:55]} 8. d4 {[%clk 0:03:04]}  cxd4 {[%clk 0:02:50]} 9. cxd4 {[%clk 0:03:04]}  g6 {[%clk 0:02:51]} 10. a3 {[%clk 0:03:03]}  Bg7 {[%clk 0:02:50]} 11. Nc3 {[%clk 0:03:04]}  O-O {[%clk 0:02:49]} 12. O-O {[%clk 0:03:03]}  Rc8 {[%clk 0:02:49]} 13. Rd1 {[%clk 0:03:00]}  Qc7 {[%clk 0:02:46]} 14. Bg5 {[%clk 0:02:41]}  h6 {[%clk 0:02:46]} 15. Bf4 {[%clk 0:02:38]}  e5 {[%clk 0:02:41]} 16. Bg3 {[%clk 0:02:36]}  Nh5 {[%clk 0:02:33]} 17. Bb3 {[%clk 0:02:20]}  Nxg3 {[%clk 0:02:21]} 18. hxg3 {[%clk 0:02:21]}  exd4 {[%clk 0:01:59]} 19. Nxd4 {[%clk 0:02:22]}  Rfe8 {[%clk 0:01:57]} 20. Nd5 {[%clk 0:01:39]}  Qc5 {[%clk 0:01:37]} 21. Nf3 {[%clk 0:01:22]}  Nf6 {[%clk 0:01:36]} 22. Nxf6+ {[%clk 0:01:12]}  Bxf6 {[%clk 0:01:37]} 23. Qd2 {[%clk 0:01:07]}  Kg7 {[%clk 0:01:15]} 24. Rac1 {[%clk 0:01:00]}  Qb6 {[%clk 0:01:16]} 25. Rxc8 {[%clk 0:00:54]}  Bxc8 {[%clk 0:01:15]} 26. Bd5 {[%clk 0:00:46]}  a5 {[%clk 0:00:59]} 27. b3 {[%clk 0:00:46]}  Bd7 {[%clk 0:00:55]} 28. Rc1 {[%clk 0:00:45]}  Rc8 {[%clk 0:00:51]} 29. Rc2 {[%clk 0:00:39]}  Rxc2 {[%clk 0:00:49]} 30. Qxc2 {[%clk 0:00:39]}  Qc5 {[%clk 0:00:49]} 31. Qxc5 {[%clk 0:00:37]}  dxc5 {[%clk 0:00:49]} 32. e5 {[%clk 0:00:37]}  Be7 {[%clk 0:00:48]} 33. Nd2 {[%clk 0:00:36]}  c4 {[%clk 0:00:46]} 34. bxc4 {[%clk 0:00:33]}  Bxa3 {[%clk 0:00:46]} 35. cxb5 {[%clk 0:00:32]}  Bxb5 {[%clk 0:00:46]} 36. Nc4 {[%clk 0:00:23]}  Bb4 {[%clk 0:00:46]} 37. Nd6 {[%clk 0:00:11]}  Bxd6 {[%clk 0:00:46]} 38. exd6 {[%clk 0:00:12]}  a4 {[%clk 0:00:37]} 39. f4 {[%clk 0:00:12]}  a3 {[%clk 0:00:36]} 40. Kf2 {[%clk 0:00:11]}  Kf8 {[%clk 0:00:26]} 41. Ke3 {[%clk 0:00:10]}  Bd7 {[%clk 0:00:25]} 42. Kd4 {[%clk 0:00:05]}  Be6 {[%clk 0:00:14]} 43. Bxe6 {[%clk 0:00:04]}  fxe6 {[%clk 0:00:15]} 44. Kc3 {[%clk 0:00:05]}  Ke8 {[%clk 0:00:14]} 45. Kb3 {[%clk 0:00:06]}  Kd7 {[%clk 0:00:15]} 46. Kxa3 {[%clk 0:00:06]}  Kxd6 {[%clk 0:00:15]} 47. Kb4 {[%clk 0:00:04]}  Kd5 {[%clk 0:00:16]} 48. Kb5 {[%clk 0:00:04]}  e5 {[%clk 0:00:13]} 49. fxe5 {[%clk 0:00:04]}  Kxe5 {[%clk 0:00:14]} 50. Kc4 {[%clk 0:00:04]}  Kf5 {[%clk 0:00:14]} 51. Kd5 {[%clk 0:00:04]}  g5 {[%clk 0:00:09]} 52. Kd4 {[%clk 0:00:04]}  Kg4 {[%clk 0:00:08]} 53. Ke5 {[%clk 0:00:04]}  Kxg3 {[%clk 0:00:09]} 54. Kf5 {[%clk 0:00:04]}  Kxg2 {[%clk 0:00:09]} 55. Kg4 {[%clk 0:00:05]}  Kf2 {[%clk 0:00:09]} 56. Kh5 {[%clk 0:00:03]}  Kf3 {[%clk 0:00:09]} 57. Kxh6 {[%clk 0:00:03]}  g4 {[%clk 0:00:10]} 58. Kh5 {[%clk 0:00:03]}  g3 {[%clk 0:00:11]} 59. Kh4 {[%clk 0:00:04]}  g2 {[%clk 0:00:11]} 60. Kg5 {[%clk 0:00:04]}  g1=Q+ {[%clk 0:00:12]} 61. Kf6 {[%clk 0:00:05]}  Qc5 {[%clk 0:00:11]} 62. Ke6 {[%clk 0:00:06]}  Ke4 {[%clk 0:00:11]} 63. Kd7 {[%clk 0:00:06]}  Qb6 {[%clk 0:00:12]} 64. Kc8 {[%clk 0:00:07]}  Qa7 {[%clk 0:00:12]} 65. Kd8 {[%clk 0:00:05]}  Ke5 {[%clk 0:00:13]} 0-1

[Event "January 9 Late 2024"]
[Site "https://www.chess.com"]
[Date "2024.01.09"]
[Round "3"]
[White "Fressinet, Laurent"]
[Black "Ivanisevic, Ivan"]
[Result "0-1"]
[Board "30"]
[TimeControl "180+1"]
[WhiteFideId "608742"]
[BlackFideId "912417"]
[WhiteElo "2980"]
[BlackElo "2736"]
[WhiteTeam "FRA"]
[BlackTeam "SRB"]
[WhiteClock "0:00:00"]
[BlackClock "0:00:05"]

1. d4 {[%clk 0:03:00]}  Nf6 {[%clk 0:02:59]} 2. Nf3 {[%clk 0:02:58]}  e6 {[%clk 0:02:57]} 3. Bg5 {[%clk 0:02:58]}  h6 {[%clk 0:02:52]} 4. Bh4 {[%clk 0:02:58]}  d6 {[%clk 0:02:50]} 5. Nbd2 {[%clk 0:02:57]}  g5 {[%clk 0:02:47]} 6. Bg3 {[%clk 0:02:56]}  Nh5 {[%clk 0:02:48]} 7. c3 {[%clk 0:02:56]}  Bg7 {[%clk 0:02:45]} 8. e4 {[%clk 0:02:56]}  Qe7 {[%clk 0:02:35]} 9. Nc4 {[%clk 0:02:54]}  f5 {[%clk 0:02:20]} 10. Nfd2 {[%clk 0:02:47]}  Nf6 {[%clk 0:02:03]} 11. e5 {[%clk 0:02:41]}  dxe5 {[%clk 0:02:04]} 12. Bxe5 {[%clk 0:02:36]}  Nc6 {[%clk 0:02:02]} 13. Be2 {[%clk 0:02:36]}  O-O {[%clk 0:02:01]} 14. O-O {[%clk 0:02:35]}  Nxe5 {[%clk 0:01:58]} 15. Nxe5 {[%clk 0:02:34]}  Rd8 {[%clk 0:01:56]} 16. Re1 {[%clk 0:02:25]}  c5 {[%clk 0:01:55]} 17. Nb3 {[%clk 0:02:23]}  cxd4 {[%clk 0:01:53]} 18. cxd4 {[%clk 0:02:22]}  a5 {[%clk 0:01:45]} 19. Bc4 {[%clk 0:02:18]}  Rd6 {[%clk 0:01:35]} 20. Qc2 {[%clk 0:02:11]}  Kh7 {[%clk 0:01:23]} 21. a4 {[%clk 0:02:07]}  b6 {[%clk 0:01:19]} 22. Nf3 {[%clk 0:01:58]}  Qc7 {[%clk 0:00:45]} 23. Rac1 {[%clk 0:01:50]}  Bb7 {[%clk 0:00:43]} 24. Rxe6 {[%clk 0:01:37]}  Be4 {[%clk 0:00:43]} 25. Qe2 {[%clk 0:01:36]}  Rxe6 {[%clk 0:00:42]} 26. Bxe6 {[%clk 0:01:37]}  Qd6 {[%clk 0:00:41]} 27. Bc4 {[%clk 0:01:22]}  Re8 {[%clk 0:00:40]} 28. Nbd2 {[%clk 0:01:17]}  Bb7 {[%clk 0:00:33]} 29. Qd3 {[%clk 0:01:13]}  Ne4 {[%clk 0:00:33]} 30. Bb5 {[%clk 0:01:09]}  Re7 {[%clk 0:00:33]} 31. Nc4 {[%clk 0:01:09]}  Qf4 {[%clk 0:00:32]} 32. Qe3 {[%clk 0:01:00]}  Qxe3 {[%clk 0:00:27]} 33. Nxe3 {[%clk 0:01:01]}  Nd6 {[%clk 0:00:23]} 34. Bc6 {[%clk 0:00:35]}  Rc7 {[%clk 0:00:21]} 35. d5 {[%clk 0:00:35]}  f4 {[%clk 0:00:20]} 36. Nc4 {[%clk 0:00:31]}  Nxc4 {[%clk 0:00:19]} 37. Rxc4 {[%clk 0:00:32]}  Bxb2 {[%clk 0:00:15]} 38. h4 {[%clk 0:00:31]}  g4 {[%clk 0:00:14]} 39. Nd2 {[%clk 0:00:31]}  Be5 {[%clk 0:00:12]} 40. Bxb7 {[%clk 0:00:20]}  Rxb7 {[%clk 0:00:11]} 41. Re4 {[%clk 0:00:20]}  Bd6 {[%clk 0:00:11]} 42. Nc4 {[%clk 0:00:20]}  Bc5 {[%clk 0:00:11]} 43. Rxf4 {[%clk 0:00:20]}  Rd7 {[%clk 0:00:11]} 44. Rf5 {[%clk 0:00:14]}  g3 {[%clk 0:00:10]} 45. Kf1 {[%clk 0:00:13]}  gxf2 {[%clk 0:00:11]} 46. g4 {[%clk 0:00:12]}  Kg7 {[%clk 0:00:10]} 47. g5 {[%clk 0:00:12]}  Re7 {[%clk 0:00:10]} 48. Re5 {[%clk 0:00:12]}  Rf7 {[%clk 0:00:07]} 49. d6 {[%clk 0:00:12]}  hxg5 {[%clk 0:00:07]} 50. hxg5 {[%clk 0:00:10]}  Rd7 {[%clk 0:00:07]} 51. Re6 {[%clk 0:00:06]}  Kf7 {[%clk 0:00:07]} 52. Rf6+ {[%clk 0:00:07]}  Kg7 {[%clk 0:00:08]} 53. Ke2 {[%clk 0:00:05]}  Bd4 {[%clk 0:00:07]} 54. Re6 {[%clk 0:00:05]}  Bc5 {[%clk 0:00:07]} 55. g6 {[%clk 0:00:04]}  Rd8 {[%clk 0:00:07]} 56. Kf1 {[%clk 0:00:03]}  Rh8 {[%clk 0:00:06]} 57. Re7+ {[%clk 0:00:02]}  Kxg6 {[%clk 0:00:05]} 58. Ne5+ {[%clk 0:00:01]}  Kf5 {[%clk 0:00:05]} 59. d7 {[%clk 0:00:01]}  Rh1+ {[%clk 0:00:05]} 60. Ke2 {[%clk 0:00:01]}  f1=Q+ {[%clk 0:00:06]} 61. Kd2 {[%clk 0:00:02]}  Qd1+ {[%clk 0:00:06]} 62. Kc3 {[%clk 0:00:01]}  Qd4+ {[%clk 0:00:06]} 63. Kc2 {[%clk 0:00:01]}  Rh2+ {[%clk 0:00:05]} 64. Kc1 {[%clk 0:00:00]}  Qd2+ {[%clk 0:00:05]} 0-1

[Event "January 9 Late 2024"]
[Site "https://www.chess.com"]
[Date "2024.01.09"]
[Round "3"]
[White "Gritsenko, Nikolai"]
[Black "Salem, A.R. Saleh"]
[Result "1/2-1/2"]
[Board "31"]
[TimeControl "180+1"]
[WhiteFideId "14112493"]
[BlackFideId "9301348"]
[WhiteElo "2736"]
[BlackElo "2975"]
[WhiteTeam "UKR"]
[BlackTeam "UAE"]
[WhiteClock "0:00:08"]
[BlackClock "0:00:04"]

1. d4 {[%clk 0:03:00]}  Nf6 {[%clk 0:03:00]} 2. Bg5 {[%clk 0:02:59]}  Ne4 {[%clk 0:03:00]} 3. h4 {[%clk 0:02:59]}  c5 {[%clk 0:02:53]} 4. dxc5 {[%clk 0:02:58]}  d5 {[%clk 0:02:48]} 5. Nd2 {[%clk 0:02:51]}  Nxc5 {[%clk 0:02:44]} 6. Ngf3 {[%clk 0:02:44]}  Nc6 {[%clk 0:02:41]} 7. c3 {[%clk 0:02:42]}  f6 {[%clk 0:02:39]} 8. Be3 {[%clk 0:02:41]}  e5 {[%clk 0:02:40]} 9. Nb3 {[%clk 0:02:37]}  Na4 {[%clk 0:02:35]} 10. Qc2 {[%clk 0:02:30]}  Bg4 {[%clk 0:02:29]} 11. g3 {[%clk 0:02:28]}  Rc8 {[%clk 0:02:27]} 12. Rd1 {[%clk 0:02:18]}  d4 {[%clk 0:02:13]} 13. Nbxd4 {[%clk 0:02:13]}  Nxd4 {[%clk 0:01:26]} 14. Nxd4 {[%clk 0:02:03]}  Qa5 {[%clk 0:01:20]} 15. Nb3 {[%clk 0:01:51]}  Qb5 {[%clk 0:01:18]} 16. Bg2 {[%clk 0:01:46]}  b6 {[%clk 0:00:36]} 17. Be4 {[%clk 0:01:38]}  Be7 {[%clk 0:00:19]} 18. Bxh7 {[%clk 0:01:17]}  Rxh7 {[%clk 0:00:18]} 19. Qg6+ {[%clk 0:01:16]}  Kf8 {[%clk 0:00:15]} 20. Qxg4 {[%clk 0:01:16]}  Qc6 {[%clk 0:00:13]} 21. O-O {[%clk 0:01:04]}  Nxb2 {[%clk 0:00:12]} 22. Rd7 {[%clk 0:00:57]}  Nc4 {[%clk 0:00:13]} 23. Bc1 {[%clk 0:00:42]}  a5 {[%clk 0:00:13]} 24. Rd3 {[%clk 0:00:36]}  Nd6 {[%clk 0:00:13]} 25. Qg6 {[%clk 0:00:32]}  Rh8 {[%clk 0:00:11]} 26. Rfd1 {[%clk 0:00:30]}  Qe4 {[%clk 0:00:09]} 27. Qxe4 {[%clk 0:00:27]}  Nxe4 {[%clk 0:00:10]} 28. Bb2 {[%clk 0:00:27]}  Kf7 {[%clk 0:00:08]} 29. Kg2 {[%clk 0:00:25]}  a4 {[%clk 0:00:07]} 30. Nd2 {[%clk 0:00:24]}  Nc5 {[%clk 0:00:07]} 31. Rd5 {[%clk 0:00:22]}  Rhd8 {[%clk 0:00:07]} 32. c4 {[%clk 0:00:17]}  Rxd5 {[%clk 0:00:04]} 33. cxd5 {[%clk 0:00:16]}  Nb7 {[%clk 0:00:03]} 34. Rc1 {[%clk 0:00:15]}  Rxc1 {[%clk 0:00:03]} 35. Bxc1 {[%clk 0:00:15]}  Bb4 {[%clk 0:00:03]} 36. Kf3 {[%clk 0:00:12]}  f5 {[%clk 0:00:03]} 37. e4 {[%clk 0:00:12]}  g6 {[%clk 0:00:03]} 38. g4 {[%clk 0:00:11]}  Nd6 {[%clk 0:00:03]} 39. gxf5 {[%clk 0:00:10]}  gxf5 {[%clk 0:00:04]} 40. exf5 {[%clk 0:00:10]}  Nxf5 {[%clk 0:00:05]} 41. Ne4 {[%clk 0:00:10]}  Nxh4+ {[%clk 0:00:05]} 42. Kg4 {[%clk 0:00:10]}  Ng6 {[%clk 0:00:05]} 43. Kf5 {[%clk 0:00:09]}  Bf8 {[%clk 0:00:03]} 44. Ng5+ {[%clk 0:00:09]}  Kg7 {[%clk 0:00:02]} 45. Ne6+ {[%clk 0:00:09]}  Kf7 {[%clk 0:00:03]} 46. Ng5+ {[%clk 0:00:09]}  Kg7 {[%clk 0:00:03]} 47. Bb2 {[%clk 0:00:09]}  Bd6 {[%clk 0:00:03]} 48. Ne6+ {[%clk 0:00:08]}  Kf7 {[%clk 0:00:03]} 49. Ng5+ {[%clk 0:00:08]}  Kg7 {[%clk 0:00:04]} 50. Ne6+ {[%clk 0:00:08]}  Kf7 {[%clk 0:00:03]} 51. Ng5+ {[%clk 0:00:08]}  Kg7 {[%clk 0:00:04]} 1/2-1/2

[Event "January 9 Late 2024"]
[Site "https://www.chess.com"]
[Date "2024.01.09"]
[Round "3"]
[White "Anton Guijarro, David"]
[Black "Garayev, Kanan"]
[Result "1-0"]
[Board "32"]
[TimeControl "180+1"]
[WhiteFideId "2285525"]
[BlackFideId "13406671"]
[WhiteElo "2974"]
[BlackElo "2732"]
[WhiteTeam "ESP"]
[BlackTeam "AZE"]
[WhiteClock "0:00:17"]
[BlackClock "0:00:17"]

1. Nf3 {[%clk 0:03:00]}  d5 {[%clk 0:02:59]} 2. c4 {[%clk 0:03:00]}  e6 {[%clk 0:02:59]} 3. e3 {[%clk 0:03:00]}  c5 {[%clk 0:02:59]} 4. d4 {[%clk 0:02:56]}  a6 {[%clk 0:02:59]} 5. cxd5 {[%clk 0:02:52]}  exd5 {[%clk 0:02:59]} 6. Be2 {[%clk 0:02:50]}  Nf6 {[%clk 0:02:59]} 7. O-O {[%clk 0:02:50]}  Nc6 {[%clk 0:03:00]} 8. b3 {[%clk 0:02:50]}  cxd4 {[%clk 0:03:00]} 9. Nxd4 {[%clk 0:02:49]}  Bd6 {[%clk 0:02:59]} 10. Bb2 {[%clk 0:02:45]}  O-O {[%clk 0:02:58]} 11. Nxc6 {[%clk 0:02:42]}  bxc6 {[%clk 0:02:58]} 12. Qc2 {[%clk 0:02:42]}  Qe7 {[%clk 0:02:52]} 13. Qxc6 {[%clk 0:02:32]}  Bg4 {[%clk 0:02:46]} 14. Qc2 {[%clk 0:02:31]}  Rac8 {[%clk 0:02:45]} 15. Qd1 {[%clk 0:02:31]}  Be5 {[%clk 0:02:41]} 16. Bxe5 {[%clk 0:02:23]}  Qxe5 {[%clk 0:02:41]} 17. Nd2 {[%clk 0:02:12]}  Bxe2 {[%clk 0:02:41]} 18. Qxe2 {[%clk 0:02:13]}  Rc2 {[%clk 0:02:42]} 19. Qd3 {[%clk 0:02:11]}  Rfc8 {[%clk 0:02:41]} 20. Nf3 {[%clk 0:02:11]}  Qd6 {[%clk 0:02:22]} 21. Qf5 {[%clk 0:01:49]}  g6 {[%clk 0:02:11]} 22. Qh3 {[%clk 0:01:49]}  Ne4 {[%clk 0:02:07]} 23. Nd4 {[%clk 0:01:49]}  R2c7 {[%clk 0:02:01]} 24. Rad1 {[%clk 0:01:47]}  Nc3 {[%clk 0:01:58]} 25. Rd2 {[%clk 0:01:47]}  Ne4 {[%clk 0:01:58]} 26. Re2 {[%clk 0:01:46]}  Rc1 {[%clk 0:01:57]} 27. Rfe1 {[%clk 0:01:40]}  f5 {[%clk 0:01:55]} 28. Qh4 {[%clk 0:01:36]}  Qb4 {[%clk 0:01:51]} 29. f3 {[%clk 0:01:27]}  g5 {[%clk 0:01:51]} 30. a3 {[%clk 0:01:20]}  Qa5 {[%clk 0:01:19]} 31. b4 {[%clk 0:01:17]}  Qxa3 {[%clk 0:01:20]} 32. Qh6 {[%clk 0:01:11]}  Qxb4 {[%clk 0:00:59]} 33. Qe6+ {[%clk 0:00:24]}  Kh8 {[%clk 0:00:58]} 34. Qe5+ {[%clk 0:00:24]}  Kg8 {[%clk 0:00:59]} 35. Qxd5+ {[%clk 0:00:24]}  Kh8 {[%clk 0:00:56]} 36. Qe5+ {[%clk 0:00:24]}  Kg8 {[%clk 0:00:57]} 37. Kf1 {[%clk 0:00:24]}  Nd2+ {[%clk 0:00:28]} 38. Kf2 {[%clk 0:00:22]}  Rxe1 {[%clk 0:00:25]} 39. Qe6+ {[%clk 0:00:22]}  Kh8 {[%clk 0:00:22]} 40. Qxc8+ {[%clk 0:00:22]}  Kg7 {[%clk 0:00:23]} 41. Qd7+ {[%clk 0:00:19]}  Kh6 {[%clk 0:00:21]} 42. Nxf5+ {[%clk 0:00:18]}  Kg6 {[%clk 0:00:17]} 43. Qe6+ {[%clk 0:00:17]} 1-0

[Event "January 9 Late 2024"]
[Site "https://www.chess.com"]
[Date "2024.01.09"]
[Round "3"]
[White "Akobian, Varuzhan"]
[Black "Nguyen, Ngoc Truong Son"]
[Result "0-1"]
[Board "35"]
[TimeControl "180+1"]
[WhiteFideId "13300580"]
[BlackFideId "12401110"]
[WhiteElo "2730"]
[BlackElo "2949"]
[WhiteTeam "USA"]
[BlackTeam "VIE"]
[WhiteClock "0:00:00"]
[BlackClock "0:00:25"]

1. d4 {[%clk 0:03:00]}  Nf6 {[%clk 0:02:58]} 2. c4 {[%clk 0:03:00]}  e6 {[%clk 0:02:59]} 3. Nf3 {[%clk 0:03:00]}  d5 {[%clk 0:02:56]} 4. cxd5 {[%clk 0:02:59]}  exd5 {[%clk 0:02:55]} 5. Nc3 {[%clk 0:03:00]}  c6 {[%clk 0:02:49]} 6. Qc2 {[%clk 0:03:00]}  g6 {[%clk 0:02:36]} 7. Bg5 {[%clk 0:02:59]}  Be7 {[%clk 0:02:32]} 8. e3 {[%clk 0:02:59]}  Bf5 {[%clk 0:02:30]} 9. Bd3 {[%clk 0:03:00]}  Bxd3 {[%clk 0:02:29]} 10. Qxd3 {[%clk 0:03:01]}  Nbd7 {[%clk 0:02:27]} 11. O-O {[%clk 0:03:00]}  O-O {[%clk 0:02:26]} 12. Rab1 {[%clk 0:03:00]}  a5 {[%clk 0:02:25]} 13. Rfc1 {[%clk 0:02:59]}  Re8 {[%clk 0:02:23]} 14. h3 {[%clk 0:02:59]}  Ne4 {[%clk 0:02:18]} 15. Bxe7 {[%clk 0:02:58]}  Qxe7 {[%clk 0:02:17]} 16. Qc2 {[%clk 0:02:58]}  f5 {[%clk 0:02:11]} 17. a3 {[%clk 0:02:55]}  g5 {[%clk 0:02:07]} 18. b4 {[%clk 0:02:44]}  axb4 {[%clk 0:02:02]} 19. axb4 {[%clk 0:02:42]}  g4 {[%clk 0:02:00]} 20. hxg4 {[%clk 0:02:41]}  fxg4 {[%clk 0:01:59]} 21. Nxe4 {[%clk 0:02:37]}  gxf3 {[%clk 0:01:57]} 22. Ng3 {[%clk 0:02:36]}  fxg2 {[%clk 0:01:34]} 23. Kxg2 {[%clk 0:02:36]}  Nf6 {[%clk 0:01:32]} 24. Rh1 {[%clk 0:02:30]}  Kh8 {[%clk 0:01:29]} 25. b5 {[%clk 0:02:20]}  Rg8 {[%clk 0:01:24]} 26. bxc6 {[%clk 0:02:19]}  bxc6 {[%clk 0:01:24]} 27. Rh3 {[%clk 0:02:04]}  Raf8 {[%clk 0:01:14]} 28. Rbh1 {[%clk 0:00:41]}  Rg7 {[%clk 0:01:07]} 29. Qf5 {[%clk 0:00:15]}  Rff7 {[%clk 0:00:46]} 30. Rb1 {[%clk 0:00:03]}  Rg8 {[%clk 0:00:29]} 31. Qe5 {[%clk 0:00:02]}  Qxe5 {[%clk 0:00:27]} 32. dxe5 {[%clk 0:00:02]}  Ng4 {[%clk 0:00:28]} 33. f4 {[%clk 0:00:01]}  Nxe3+ {[%clk 0:00:26]} 34. Kf3 {[%clk 0:00:00]}  Nc4 {[%clk 0:00:25]} 0-1

[Event "January 9 Late 2024"]
[Site "https://www.chess.com"]
[Date "2024.01.09"]
[Round "3"]
[White "Manolache, Marius"]
[Black "Matlakov, Maxim"]
[Result "0-1"]
[Board "40"]
[TimeControl "180+1"]
[WhiteFideId "1201530"]
[BlackFideId "4168003"]
[WhiteElo "2705"]
[BlackElo "2930"]
[WhiteTeam "ROU"]
[BlackTeam "RUS"]
[WhiteClock "0:00:23"]
[BlackClock "0:00:39"]

1. d4 {[%clk 0:03:00]}  Nf6 {[%clk 0:02:57]} 2. Nf3 {[%clk 0:03:00]}  e6 {[%clk 0:02:57]} 3. c4 {[%clk 0:03:01]}  Bb4+ {[%clk 0:02:54]} 4. Bd2 {[%clk 0:03:01]}  a5 {[%clk 0:02:53]} 5. Qc2 {[%clk 0:02:59]}  d5 {[%clk 0:02:50]} 6. e3 {[%clk 0:02:59]}  O-O {[%clk 0:02:49]} 7. Nc3 {[%clk 0:02:58]}  c6 {[%clk 0:02:44]} 8. Be2 {[%clk 0:02:56]}  Nbd7 {[%clk 0:02:43]} 9. O-O {[%clk 0:02:56]}  Qe7 {[%clk 0:02:42]} 10. b3 {[%clk 0:02:48]}  Bd6 {[%clk 0:02:40]} 11. h3 {[%clk 0:02:47]}  h6 {[%clk 0:02:37]} 12. Rfe1 {[%clk 0:02:42]}  dxc4 {[%clk 0:02:35]} 13. bxc4 {[%clk 0:02:39]}  e5 {[%clk 0:02:35]} 14. Bd3 {[%clk 0:02:33]}  Re8 {[%clk 0:02:33]} 15. Bf5 {[%clk 0:02:17]}  e4 {[%clk 0:02:27]} 16. Nh2 {[%clk 0:02:14]}  g6 {[%clk 0:02:22]} 17. Bxd7 {[%clk 0:02:08]}  Bxd7 {[%clk 0:02:23]} 18. Nf1 {[%clk 0:02:03]}  b5 {[%clk 0:02:21]} 19. c5 {[%clk 0:01:59]}  Bc7 {[%clk 0:02:20]} 20. Ng3 {[%clk 0:01:56]}  b4 {[%clk 0:02:19]} 21. Na4 {[%clk 0:01:53]}  Nd5 {[%clk 0:02:18]} 22. a3 {[%clk 0:01:52]}  h5 {[%clk 0:02:14]} 23. axb4 {[%clk 0:01:50]}  axb4 {[%clk 0:02:12]} 24. Nb6 {[%clk 0:01:44]}  Nxb6 {[%clk 0:01:48]} 25. cxb6 {[%clk 0:01:42]}  Bxb6 {[%clk 0:01:48]} 26. Rxa8 {[%clk 0:01:40]}  Rxa8 {[%clk 0:01:47]} 27. Qxe4 {[%clk 0:01:40]}  Qxe4 {[%clk 0:01:41]} 28. Nxe4 {[%clk 0:01:39]}  Bf5 {[%clk 0:01:38]} 29. Nc5 {[%clk 0:01:34]}  Bxc5 {[%clk 0:01:29]} 30. dxc5 {[%clk 0:01:34]}  b3 {[%clk 0:01:28]} 31. Bc3 {[%clk 0:01:34]}  f6 {[%clk 0:01:12]} 32. e4 {[%clk 0:01:31]}  Re8 {[%clk 0:00:53]} 33. f3 {[%clk 0:01:29]}  Kf7 {[%clk 0:00:53]} 34. Ra1 {[%clk 0:01:26]}  Be6 {[%clk 0:00:49]} 35. Ra7+ {[%clk 0:01:21]}  Re7 {[%clk 0:00:49]} 36. Rxe7+ {[%clk 0:01:19]}  Kxe7 {[%clk 0:00:50]} 37. Kf2 {[%clk 0:01:18]}  h4 {[%clk 0:00:50]} 38. Ke3 {[%clk 0:01:17]}  Bc4 {[%clk 0:00:50]} 39. Kf2 {[%clk 0:01:12]}  Ke6 {[%clk 0:00:49]} 40. g3 {[%clk 0:01:12]}  g5 {[%clk 0:00:49]} 41. gxh4 {[%clk 0:01:12]}  gxh4 {[%clk 0:00:50]} 42. f4 {[%clk 0:01:11]}  f5 {[%clk 0:00:49]} 43. e5 {[%clk 0:00:59]}  Kd5 {[%clk 0:00:49]} 44. Bb2 {[%clk 0:00:46]}  Ke4 {[%clk 0:00:49]} 45. e6 {[%clk 0:00:34]}  Bxe6 {[%clk 0:00:48]} 46. Ke2 {[%clk 0:00:34]}  Kxf4 {[%clk 0:00:47]} 47. Kf2 {[%clk 0:00:34]}  Ke4 {[%clk 0:00:47]} 48. Ke2 {[%clk 0:00:33]}  f4 {[%clk 0:00:47]} 49. Bf6 {[%clk 0:00:29]}  Bxh3 {[%clk 0:00:46]} 50. Kd2 {[%clk 0:00:29]}  Be6 {[%clk 0:00:39]} 51. Bxh4 {[%clk 0:00:23]}  Kf3 {[%clk 0:00:39]} 0-1